Cogmind - Beta 9.6 *** ADVENTURER MODE // 2020.05.23 @ 19:08:15 Player: Ben'n'Dan Result: Self-destructed Performance ------------- Evolutions (1) 500 Regions Visited (3) 600 Robots Destroyed (12) 60 Value Destroyed (433) 433 Prototype IDs (4) 80 Alien Tech Used (0) 0 Bonus (0) 0 TOTAL SCORE: 1673 Bonus ------- None Cogmind --------- Core Integrity 380/400 Matter 247/300 Energy 248/250 System Corruption 0% Temperature Cool (2) Movement Flying (37) Location -9/Materials Parts ------- > --- POWER (2) -------- Ion Engine > --- PROPULSION (2) --- Flight Unit Flight Unit > --- UTILITY (3) ------ Visual Processing Unit Signal Interpreter > --- WEAPON (2) ------- Heavy Assault Rifle > --- INVENTORY (4) ---- Ion Engine Light Assault Rifle Rocket Launcher Peak State ------------ > --- POWER ------------ Ion Engine > --- PROPULSION ------- Aluminum Leg Aluminum Leg > --- UTILITY ---------- Small Storage Unit Visual Processing Unit Signal Interpreter > --- WEAPON ----------- Advanced Beam Cannon Heavy Assault Rifle > --- INVENTORY -------- Hover Unit Heat Sink Beam Rifle Light Assault Rifle Rocket Launcher [Rating: 12] Favorites ----------- Power Light Ion Engine Engine Light Ion Engine Propulsion Aluminum Leg Leg Aluminum Leg Flight Unit Flight Unit Utility Small Storage Unit Storage Small Storage Unit Processor Signal Interpreter Weapon EM Pulse Gun Energy Gun EM Pulse Gun Energy Cannon Advanced Beam Cannon Ballistic Gun Light Assault Rifle Build | -11 -10 -10 -9 ------- Run | Scr Mat Min Mat Slots Evolved 2 | . . . 2 Power 1 | . . . 1 Propulsion . | . . . . Utility 1 | . . . 1 Weapon . | . . . . Parts Attached 20 | 6 1 4 9 Power 4 | 1 . 1 2 Engine 4 | 1 . 1 2 Core . | . . . . Reactor . | . . . . Propulsion 7 | 2 . 1 4 Treads . | . . . . Leg 5 | 2 . 1 2 Wheel . | . . . . Hover . | . . . . Flight 2 | . . . 2 Utility 3 | 1 . . 2 Device . | . . . . Storage 1 | 1 . . . Processor 2 | . . . 2 Hackware . | . . . . Protection . | . . . . Artifact . | . . . . Weapon 6 | 2 1 2 1 Energy Gun 3 | 2 . 1 . Energy Cannon 1 | . . . 1 Ballistic Gun 2 | . 1 1 . Ballistic Cannon . | . . . . Launcher . | . . . . Special Weapon . | . . . . Impact Weapon . | . . . . Slashing Weapon . | . . . . Piercing Weapon . | . . . . Special Melee Weapon . | . . . . Unidentified Prototypes 1 | . . . 1 Parts Lost 4 | . . 3 1 Power 2 | . . 1 1 Propulsion 1 | . . 1 . Utility . | . . . . Weapon 1 | . . 1 . Highest Loss Streak 2 | . . 2 1 Average Slot Usage (%) 83 | . 85 81 83 Engine 10 | . 14 11 7 Leg 24 | . 28 26 21 Storage 12 | . 14 14 11 Processor 9 | . . . 21 Energy Gun 9 | . 20 11 . Energy Cannon 2 | . . . 5 Ballistic Gun 13 | . 8 16 16 Naked Turns . | . . . . Heaviest Build 16 | 11 11 11 16 Greatest Support 20 | 20 20 20 20 Greatest Overweight (x) 3 | . . . 3 Average Overweight (x) . | . . . . Largest Inventory Capacity 6 | 6 6 6 6 Average Capacity 5 | 5 6 6 5 Most Carried 6 | 2 6 6 6 Average Carried 4 | 1 3 5 5 Final Capacity 6 | 6 6 6 4 Final Carried 6 | 2 6 6 3 Class Distribution -------------------- 56% | Mutant 43% | Scavenger-Mutant Dominant Class ---------------- Mutant | -10/Materials Mutant | -10/Mines Scavenger-Mutant | -9/Materials Resources | -11 -10 -10 -9 ----------- Run | Scr Mat Min Mat Matter Collected 377 | 260 16 42 59 Remotely . | . . . . Salvage Created 510 | . 29 202 279 Parts 44 | . 6 17 21 Haulers Intercepted . | . . . . Recyclers Shooed . | . . . . Parts Field Recycled . | . . . . Retrieved Matter . | . . . . Parts Self-Destructed . | . . . . Prevented . | . . . . Kills | -11 -10 -10 -9 ------- Run | Scr Mat Min Mat Combat Hostiles Destroyed 9 | . . 4 5 Guns 4 | . . 4 . Cannons 5 | . . . 5 Classes Destroyed 3 | . 1 2 . Watcher 3 | . 2 . 1 Grunt 3 | . . 2 1 Sentry 6 | . . 2 4 Best Kill Streak 4 | . 1 4 3 Combat Bots Only 4 | . . 4 3 Max Kills in Single Turn 1 | . 1 1 1 Gunslinging . | . . . . Exploded . | . . . . Melee . | . . . . Uniques/NPCs Destroyed . | . . . . Combat | -11 -10 -10 -9 -------- Run | Scr Mat Min Mat Damage Taken 584 | . 27 351 206 Core 104 | . . 84 20 Absorbed by Shields . | . . . . Core Remaining (%) 83 | 100 . 66 . Volleys Fired 28 | . 7 12 9 Largest 2 | . 2 2 2 Hottest 91 | . 80 60 91 Shots Fired 56 | . 14 24 18 Gun 47 | . 14 24 9 Cannon 9 | . . . 9 Launcher . | . . . . Special . | . . . . Kinetic 27 | . 6 12 9 Thermal 9 | . . . 9 Explosive . | . . . . Electromagnetic 20 | . 8 12 . Robot Hit Streak 24 | . 2 15 24 Robot Miss Streak 2 | . 2 1 . Penetration Max . | . . . . Secondary Targets . | . . . . Shots Hit Robots 44 | . 7 22 15 Core Hits 23 | . 4 10 9 Critical Hits 2 | . . . 2 Critical Kills 2 | . . . 2 Critical Parts Destroyed . | . . . . Melee Attacks . | . . . . Impact . | . . . . Slashing . | . . . . Piercing . | . . . . Sneak Attacks . | . . . . Combat Hostiles . | . . . . Follow-up Attacks . | . . . . Damage Inflicted 589 | . 109 223 257 Guns 402 | . 86 223 93 Cannons 164 | . . . 164 Explosions 23 | . 23 . . Melee . | . . . . Ramming . | . . . . Kinetic 189 | . 18 78 93 Thermal 187 | . 23 . 164 Explosive . | . . . . Electromagnetic 213 | . 68 145 . Impact . | . . . . Slashing . | . . . . Piercing . | . . . . Highest Corruption . | . . . . Average Corruption . | . . . . Corruption Purged . | . . . . Overload Shots . | . . . . Overflow Damage . | . . . . Projectiles . | . . . . Explosions . | . . . . Melee . | . . . . Knockbacks . | . . . . Impact . | . . . . Kinetic . | . . . . Secondary . | . . . . Self-Inflicted Damage 27 | . 27 . . Shots 1 | . 1 . . Rammed . | . . . . Targets Rammed . | . . . . Kicked . | . . . . Crushed . | . . . . Highest Temperature 76 | . 32 76 27 Average Temperature 20 | . 14 33 9 Received Heat Transfer 258 | . . 171 87 Siege Activations . | . . . . Robots Corrupted . | . . . . Combat Hostiles . | . . . . Parts Fried 2 | . 1 1 . Impact Corruptions . | . . . . Robots Melted . | . . . . Combat Hostiles . | . . . . Parts Melted 1 | . . . 1 Heat Transferred 346 | . 50 . 296 Parts Sabotaged . | . . . . Parts Stolen . | . . . . Parts Stripped . | . . . . Power Chain Reactions 1 | . 1 . . Missiles Intercepted . | . . . . Alert | -11 -10 -10 -9 ------- Run | Scr Mat Min Mat Peak Influence 270 | . 134 119 270 Average Influence 76 | . 21 80 139 Maximum Alert Level 1 | . . . 1 Low Security (%) 87 | 100 100 100 67 Level 1 12 | . . . 32 Level 2 . | . . . . Level 3 . | . . . . Level 4 . | . . . . Level 5 . | . . . . High Security . | . . . . Max Security . | . . . . Squads Dispatched 1 | . . . 1 Investigation . | . . . . Extermination . | . . . . Reinforcement 1 | . . . 1 Assault . | . . . . Garrison . | . . . . Intercept . | . . . . Construction Impeded . | . . . . Haulers Reinforced . | . . . . Stealth | -11 -10 -10 -9 --------- Run | Scr Mat Min Mat Distress Signals 2 | . 1 . 1 Communications Jammed . | . . . . Distress Signals . | . . . . Times Spotted 24 | . 3 7 14 Peak Tracking Total 5 | . 3 4 5 Tactical Retreats 5 | . 1 2 2 Traps | -11 -10 -10 -9 ------- Run | Scr Mat Min Mat Traps Triggered . | . . . . Indirectly . | . . . . Trap Hack Attempts . | . . . . Triggered . | . . . . Disarmed . | . . . . Reprogrammed . | . . . . Reused . | . . . . Traps Extracted . | . . . . Installed . | . . . . Triggered . | . . . . Machines | -11 -10 -10 -9 ---------- Run | Scr Mat Min Mat Machines Disabled . | . . . . Max in Single Turn . | . . . . Machines Sabotaged . | . . . . Garrisons Compromised . | . . . . Overloaded Fab Kills . | . . . . Fab Network Shutdowns . | . . . . Hacking | -11 -10 -10 -9 --------- Run | Scr Mat Min Mat Machines Accessed 2 | . . . 2 Terminals 2 | . . . 2 Fabricators . | . . . . Repair Stations . | . . . . Recycling Units . | . . . . Scanalyzers . | . . . . Garrison Access . | . . . . Total Hacks 4 | . . . 4 Successful 2 | . . . 2 Failed 2 | . . . 2 Catastrophic . | . . . . Database Lockouts . | . . . . Manual . | . . . . Terminals 4 | . . . 4 Fabricators . | . . . . Repair Stations . | . . . . Recycling Units . | . . . . Scanalyzers . | . . . . Garrison Access . | . . . . Terminal Hacks 2 | . . . 2 Prototype ID Bank 1 | . . . 1 Hauler Manifests 1 | . . . 1 Fabricator Hacks . | . . . . Repair Station Hacks . | . . . . Recycling Unit Hacks . | . . . . Scanalyzer . | . . . . Garrison Access Hacks . | . . . . Unauthorized Hacks . | . . . . Terminals . | . . . . Fabricators . | . . . . Repair Stations . | . . . . Recycling Units . | . . . . Scanalyzers . | . . . . Garrison Access . | . . . . Data Cores Recovered . | . . . . Used . | . . . . Hacking Detections 2 | . . . 2 Full Trace Events . | . . . . Feedback Events . | . . . . Feedback Blocked . | . . . . Robot Schematics Acquired . | . . . . Robots Built . | . . . . Matter . | . . . . Time . | . . . . Total Robot Build Rating . | . . . . Part Schematics Acquired . | . . . . Parts Built . | . . . . Matter . | . . . . Time . | . . . . Total Part Build Rating . | . . . . Parts Repaired . | . . . . Time . | . . . . Parts Recycled . | . . . . Recycled Matter . | . . . . Retrieved Matter . | . . . . Retrieved Components . | . . . . Parts Scanalyzed . | . . . . Part Schematics Acquired . | . . . . Parts Damaged . | . . . . Bothacking | -11 -10 -10 -9 ------------ Run | Scr Mat Min Mat Used RIF Installer . | . . . . Robots Hacked . | . . . . Non-combat . | . . . . Combat . | . . . . Robot Hacks Applied . | . . . . Relay Couplers Released . | . . . . Robots Rewired . | . . . . Allies Hacked . | . . . . Hacks Repelled . | . . . . Allies | -11 -10 -10 -9 -------- Run | Scr Mat Min Mat Total Allies . | . . . . Largest Group . | . . . . Highest-Rated Group . | . . . . Highest-Rated Ally . | . . . . Total Orders . | . . . . Ally Attacks . | . . . . Total Damage . | . . . . Kills . | . . . . Allies Corrupted . | . . . . Allies Melted . | . . . . Intel | -11 -10 -10 -9 ------- Run | Scr Mat Min Mat Robot Analysis Total . | . . . . Derelict Logs Recovered . | . . . . Drone Launches . | . . . . Drone Recoveries . | . . . . Exploration | -11 -10 -10 -9 ------------- Run | Scr Mat Min Mat Turns Passed 637 | 68 207 108 254 Spaces Moved 435 | 53 152 56 174 Core 8 | 8 . . . Treads . | . . . . Legs 422 | 45 152 56 169 Wheels . | . . . . Hover . | . . . . Flight 5 | . . . 5 Fastest Speed 37 | 50 120 120 37 Average Speed 118 | 109 120 120 119 Slowest Speed 280 | 120 120 120 280 Overloaded Moves . | . . . . Propulsion Burnouts . | . . . . Robots Hopped . | . . . . Cave-ins Triggered . | . . . . Exploration Rate (%) 19 | 3 35 19 19 Regions Visited 3 Branch Regions 1 Pre-discovered Areas . | . . . . Known Exits Taken . | . . . . Unknown Exits Taken 3 | 1 1 1 . Scrap Searched 1 | . . 1 . Spaces Dug . | . . . . Terrain Destroyed 3 | . 3 . . Melee . | . . . . Projectile . | . . . . AOE 3 | . 3 . . Actions | -11 -10 -10 -9 --------- Run | Scr Mat Min Mat Total 504 | 60 164 74 206 Wait . | . . . . Move 432 | 52 151 55 174 Hop . | . . . . Pick Up 12 | 2 4 2 4 Fast Attach 11 | 6 . 2 3 Attach 7 | . 1 2 4 Detach 2 | . 1 . 1 Swap 2 | . . . 2 Drop 10 | . . 1 9 Fire 28 | . 7 12 9 Melee . | . . . . Ram . | . . . . Kick . | . . . . Crush . | . . . . Escape Stasis . | . . . . Rewire . | . . . . Trap . | . . . . Miscellaneous . | . . . . Route ------- -11/Scrapyard -10/Materials (discovered 2 exits: [*Min x2]) -10/Mines -9/Materials History --------- Turn | Location | Event 6 | -11/Scrapyard | Discovered new exit (range 16) 69 | -11/Scrapyard | Entered Materials 220 | -10/Materials | Discovered new exit (range 15) 250 | -10/Materials | Discovered new exit (range 10) 276 | -10/Materials | Entered Mines 343 | -10/Mines | Build established: Mutant 374 | -10/Mines | Discovered new exit (range 9) 384 | -10/Mines | Entered Materials 384 | -9/Materials | Evolved 2 slots: Power x1, Utility x1 638 | -9/Materials | Self-destructed Last Messages --------------- 00562_ Acquired 6 matter. 00566_ W-16 Scout distress signal alerts nearby ally. 00569_ R-06 Scavenger collects Lgt. Treads. 00570_ Sensor Array melted. 00570_ W-16 Scout destroyed. 00573_ R-06 Scavenger collects Hvy. Assault Rifle. 00574_ Acquired 3 matter. 00578_ G-34 Mercenary destroyed. 00582_ Dropped Aluminum Leg. 00586_ Acquired Ion Engine. 00588_ Dropped Aluminum Leg. 00590_ Dropped Heat Sink. 00591_ Acquired Heat Sink. 00605_ R-06 Scavenger collects Aluminum Leg. 00628_ Dropped Aluminum Leg. 00629_ Acquired Flight Unit. 00635_ Dropped Sml. Storage Unit. 00636_ Dropped Hover Unit. 00636_ Dropped Adv. Beam Cannon. 00637_ Connecting with Terminal... Map ----- +----------------------------------------------------+ | ?????????????????????????????????????????????????? | | ?????????????????????????????????????????????????? | | ?????????????????????????????????????????????????? | | ?????????????????????????????????????????????????? | | ?????????????????????????????????????????????????? | | ?????????????????????????????????????????????????? | | ????????????????????????? ???????????????????????? | | ????????????????????????? ???????????????????????? | | ???????????????????????## ###????????????????????? | | ??????????????????????? #????????????????????? | | ??????????????????????? ?????????????????????? | | ??????????????????????? a ?????????????????????? | | ??????????????????????? k ?????????????????????? | | ??????????????????????? ?????????????????????? | | ???????????????????????# k#?????????????????????? | | ???????????????????????# #?????????????????????? | | ???????????????????????# Y#?????????????????????? | | ???????????????????????# t #?######??????????????? | | ???????????????????????# #? = #??????????????? | | ???????????????????????# Y # ????????????????? | | ??????##############???# # ??????????????????? | | ?????# #???# + ????????????????????? | | ?????# """ """ #####g #?????????????????????? | | ?????# """ """ ]!! + #?????????????????????? | | ?????# """ """ ]!! ######g######?????????????????? | | ????## !!! # @ = #?????????????????? | | ????# ! ## === #?????????????????? | | ????########+######## !!] #?????????????????? | | ?????????# #????# [] #?????????????????? | | ########## #????# """T""" ##??######????????? | | # # #????############ #????????? | | # """ # #?????# # """ #????????? | | # """ # #?????# # """ #????????? | | # """ ## ##?????# """ """ # """ #????????? | | #! ## #??????# """ """ # #????????? | | # """ ## #??????# """ """ # """ #????????? | | + """ ## #??????# # """ #????????? | | # """ ## #??????# # """ #????????? | | # ## #??????# # #????????? | | ########### ############+########+#####????????? | | % =% #?????????? | | ! #?????????? | | #?????????? | | ########################################?????????? | | ?????????????????????????????????????????????????? | | ?????????????????????????????????????????????????? | | ?????????????????????????????????????????????????? | | | | | | | +----------------------------------------------------+ Best States ------------- Heat Dissipation 28 Energy Generation 15 Energy Capacity 275 Matter Stores 300 Matter Capacity 300 Sight Range 18 Terrain Scan Density 10 Resistance: KI 20 Resistance: TH 20 Resistance: EX 20 Resistance: EM 20 Resistance: I 20 Resistance: S 20 Resistance: P 20 Evasion (%) 40 Offensive Hacking 10 Item Schematics ----------------- None Robot Schematics ------------------ None Fabricated ------------ Nothing Alien Tech Used ----------------- None Achievements -------------- None Challenges ------------ None Game ------ Seed WaveReactionNullifier Manual? 0 Play Time 00:08:47 Cumulative 109.4 hours Start 2020.05.23 @ 19:02:08 End 2020.05.23 @ 19:08:15 Sessions 1 Manual Loads 0 Difficulty Adventurer Special Mode None Game No. 248 Rogue 245 Adventurer 3 Explorer 0 Win Type - Total 4 Types 3/0/0/1/0/0/0 Lore% 75 Gallery% 76 Achievement% 57 Wizard Run 0 Options --------- ASCII 0 Keyboard 0 Movement Mouse Keybinds 0 Fullscreen 1 Font 12/Smallcaps Map View 83x54 Tactical HUD 1 Map Filters NONE Filters NONE Steam 1 RUN: f67deb2e-ba70-4bd0-b9cd-0584e3b1b22d